[Event "5th EFE Metz Festival IM 2019"]
[Site "Metz"]
[Date "2019.07.22"]
[Round "1.3"]
[White "Delorme, Alban"]
[Black "Villegas, Pierre"]
[Result "0-1"]
[ECO "D02"]
[WhiteElo "2327"]
[BlackElo "2349"]
[Annotator "NA"]
[PlyCount "80"]
[EventDate "2019.07.22"]
[EventType "tourn"]
[EventCountry "FRA"]
[SourceTitle "playchess.com"]
[Source "ChessBase"]
[SourceQuality "1"]
[TimeControl "5400+30"]

1. Nf3 d5 {[%emt 0:00:01]} 2. d4 {[%emt 0:01:19]} Nf6 {[%emt 0:00:08]} 3. g3 {[%emt 0:00:13]} e6 {[%emt 0:00:29]} 4. Bg2 {[%emt 0:00:12]} Be7 {[%emt 0:00:26]} 5. O-O {[%emt 0:00:14]} O-O {[%emt 0:00:06]} 6. c4 {[%emt 0:00:10]} dxc4 {[%emt 0:00:17]} 7. Qc2 {[%emt 0:00:31]} a6 {[%emt 0:00:23]} 8. a4 {[%emt 0:00:23]} c5 {[%emt 0:00:51]} 9. Rd1 {[%emt 0:06:31]} Nc6 {[%emt 0:02:51]} 10. Qxc4 {[%emt 0:08:21]} b5 {[%emt 0:04:54]} 11. Qc2 {[%emt 0:04:19]} Nb4 {[%emt 0:03:34]} 12. Qb3 {[%emt 0:04:23]} c4 {[%emt 0:02:18]} 13. Qc3 {[%emt 0:00:05]} Bb7 {[%emt 0:01:11]} 14. Bf4 {[%emt 0:02:36]} Be4 {[%emt 0:14:15]} 15. Ne1 {[%emt 0:12:31]} Nbd5 {[%emt 0:07:03]} 16. Qc1 {[%emt 0:00:58]} Nxf4 {[%emt 0:00:13]} 17. Qxf4 {[%emt 0:01:30]} Bxg2 {[%emt 0:01:15]} 18. Kxg2 {[%emt 0:03:27]} b4 {[%emt 0:04:04]} 19. e4 {[%emt 0:05:47]} a5 {[%emt 0:12:50]} 20. Nc2 {[%emt 0:01:38]} Nd7 {[%emt 0:01:26]} 21. d5 {[%emt 0:04:50]} Nc5 {[%emt 0:14:29]} 22. d6 {[%emt 0:03:43]} Nd3 {[%emt 0:00:31]} 23. Rxd3 {[%emt 0:00:17]} Bg5 {[%emt 0:00:02]} 24. Qf3 {[%emt 0:00:11]} cxd3 {[%emt 0:00:03]} 25. Qxd3 {[%emt 0:00:08]} Bf6 {[%emt 0:04:19]} 26. Nd2 {[%emt 0:00:32]} Bxb2 {[%emt 0:03:52]} 27. Rb1 {[%emt 0:00:17]} Bc3 {[%emt 0:01:04]} 28. Nc4 {[%emt 0:00:09]} Rc8 {[%emt 0:01:24]} 29. N2e3 {[%emt 0:00:43]} Rc5 {[%emt 0:02:34]} 30. d7 {[%emt 0:06:48]} Qc7 {[%emt 0:03:10]} 31. Rd1 {[%emt 0:01:37]} Rd8 {[%emt 0:00:04]} 32. f4 {[%emt 0:01:31]} Bf6 {[%emt 0:03:48]} 33. f5 {[%emt 0:06:51]} Bg5 {[%emt 0:04:18]} 34. fxe6 {[%emt 0:00:13]} fxe6 {[%emt 0:00:03]} 35. h4 {[%emt 0:01:48]} Bxe3 {[%emt 0:00:24]} 36. Nxe3 {[%emt 0:00:04]} h6 {[%emt 0:01:31]} 37. e5 {[%emt 0:03:21]} Qxe5 {[%emt 0:02:01]} 38. Qg6 {[%emt 0:00:41]} Qxe3 {[%emt 0:01:38]} 39. Qe8+ {[%emt 0:00:20]} Kh7 {[%emt 0:01:02]} 40. Rf1 {[%emt 0:01:00]} Qd2+ {[%emt 0:00:14]} 0-1

[Event "5th EFE Metz Festival IM 2019"]
[Site "Metz"]
[Date "2019.07.22"]
[Round "1.4"]
[White "Philippe, Guillaume"]
[Black "Mouhamad, Joachim"]
[Result "0-1"]
[ECO "A48"]
[WhiteElo "2344"]
[BlackElo "2302"]
[Annotator "NA"]
[PlyCount "98"]
[EventDate "2019.07.22"]
[EventType "tourn"]
[EventCountry "FRA"]
[SourceTitle "playchess.com"]
[Source "ChessBase"]
[SourceQuality "1"]
[TimeControl "5400+30"]

1. d4 {[%emt 0:00:00]} Nf6 {[%emt 0:00:00]} 2. Nf3 {[%emt 0:01:59]} g6 {[%emt 0:00:00]} 3. e3 {[%emt 0:00:28]} Bg7 {[%emt 0:00:09]} 4. Be2 {[%emt 0:00:28]} O-O {[%emt 0:00:13]} 5. O-O {[%emt 0:00:19]} d6 {[%emt 0:02:21]} 6. c4 {[%emt 0:01:33]} Nbd7 {[%emt 0:00:37]} 7. Nc3 {[%emt 0:00:15]} Re8 {[%emt 0:04:28]} 8. Re1 {[%emt 0:06:13]} e5 {[%emt 0:01:04]} 9. b4 {[%emt 0:00:23]} e4 {[%emt 0:09:19]} 10. Nd2 {[%emt 0:00:15]} Nf8 {[%emt 0:00:49]} 11. a4 {[%emt 0:04:07]} h5 {[%emt 0:00:25]} 12. a5 {[%emt 0:00:39]} N8h7 {[%emt 0:00:33]} 13. c5 {[%emt 0:05:00]} d5 {[%emt 0:04:59]} 14. a6 {[%emt 0:00:52]} bxa6 {[%emt 0:04:00]} 15. Bxa6 {[%emt 0:00:57]} Bg4 {[%emt 0:12:37]} 16. Qb3 {[%emt 0:03:58]} Be6 {[%emt 0:00:59]} 17. Bb7 {[%emt 0:00:51]} Rb8 {[%emt 0:00:09]} 18. Bc6 {[%emt 0:01:52]} Ng4 {[%emt 0:08:22]} 19. Nf1 {[%emt 0:12:19]} Qh4 {[%emt 0:06:42]} 20. Ra2 {[%emt 0:00:16]} Red8 {[%emt 0:11:22]} 21. Qd1 {[%emt 0:11:03]} Rxb4 {[%emt 0:04:16]} 22. f3 {[%emt 0:02:27]} exf3 {[%emt 0:01:24]} 23. gxf3 {[%emt 0:00:06]} Ng5 {[%emt 0:00:29]} 24. Ree2 {[%emt 0:08:31]} Nxf3+ {[%emt 0:00:51]} 25. Kh1 {[%emt 0:00:14]} Rc4 {[%emt 0:02:28]} 26. Rec2 {[%emt 0:03:08]} Rxc3 {[%emt 0:04:05]} 27. Qxf3 {[%emt 0:01:43]} Rxc2 {[%emt 0:00:05]} 28. Rxc2 {[%emt 0:00:14]} Bf5 {[%emt 0:00:16]} 29. Qe2 {[%emt 0:01:03]} Bxc2 {[%emt 0:04:07]} 30. Qxc2 {[%emt 0:00:06]} Qf6 {[%emt 0:00:24]} 31. Bb5 {[%emt 0:00:23]} Rb8 {[%emt 0:00:32]} 32. Qe2 {[%emt 0:02:20]} c6 {[%emt 0:00:58]} 33. Ba6 {[%emt 0:00:17]} Rb1 {[%emt 0:02:33]} 34. Bd2 {[%emt 0:00:13]} Bh6 {[%emt 0:00:32]} 35. Kg2 {[%emt 0:00:41]} Qe6 {[%emt 0:03:58]} 36. h3 {[%emt 0:00:31]} Nf6 {[%emt 0:00:16]} 37. Be1 {[%emt 0:00:56]} Rb3 {[%emt 0:02:31]} 38. Bd3 {[%emt 0:01:18]} Ne4 {[%emt 0:00:27]} 39. Qc2 {[%emt 0:00:37]} Rxd3 {[%emt 0:02:19]} 40. Qxd3 {[%emt 0:00:11]} Ng5 {[%emt 0:00:02]} 41. Bg3 {[%emt 0:02:43]} Qxh3+ {[%emt 0:00:39]} 42. Kg1 {[%emt 0:00:09]} h4 {[%emt 0:00:23]} 43. Bf4 {[%emt 0:00:16]} Qg4+ {[%emt 0:00:48]} 44. Kf2 {[%emt 0:02:23]} Nh3+ {[%emt 0:00:11]} 45. Ke1 {[%emt 0:00:12]} Nxf4 {[%emt 0:00:25]} 46. exf4 {[%emt 0:00:08]} Bxf4 {[%emt 0:00:07]} 47. Kf2 {[%emt 0:02:05]} h3 {[%emt 0:00:20]} 48. Ne3 {[%emt 0:02:15]} Qg3+ {[%emt 0:00:07]} 49. Kf1 {[%emt 0:00:05]} Qf3+ {[%emt 0:00:04]} 0-1

[Event "5th EFE Metz Festival IM 2019"]
[Site "Metz"]
[Date "2019.07.22"]
[Round "1.5"]
[White "Micottis, Dorian"]
[Black "Vedder, Richard"]
[Result "1/2-1/2"]
[ECO "C77"]
[WhiteElo "2226"]
[BlackElo "2286"]
[Annotator "NA"]
[PlyCount "67"]
[EventDate "2019.07.22"]
[EventType "tourn"]
[EventCountry "FRA"]
[SourceTitle "playchess.com"]
[Source "ChessBase"]
[SourceQuality "1"]
[TimeControl "5400+30"]

1. e4 {[%emt 0:00:00]} e5 {[%emt 0:00:00]} 2. Nf3 {[%emt 0:00:08]} Nc6 {[%emt 0:00:00]} 3. Bb5 {[%emt 0:00:57]} a6 {[%emt 0:00:00]} 4. Ba4 {[%emt 0:00:04]} Nf6 {[%emt 0:00:00]} 5. d3 {[%emt 0:00:13]} d6 {[%emt 0:00:13]} 6. c4 {[%emt 0:00:17]} g6 {[%emt 0:00:30]} 7. Nc3 {[%emt 0:00:38]} Bg7 {[%emt 0:01:07]} 8. Nd5 {[%emt 0:00:28]} Bd7 {[%emt 0:03:27]} 9. h3 {[%emt 0:13:57]} Nxd5 {[%emt 0:03:50]} 10. cxd5 {[%emt 0:00:27]} Ne7 {[%emt 0:00:06]} 11. Be3 {[%emt 0:04:32]} c6 {[%emt 0:16:25]} 12. dxc6 {[%emt 0:03:14]} Bxc6 {[%emt 0:00:18]} 13. O-O {[%emt 0:07:46]} O-O {[%emt 0:05:28]} 14. Bxc6 {[%emt 0:03:26]} Nxc6 {[%emt 0:00:23]} 15. d4 {[%emt 0:01:00]} exd4 {[%emt 0:05:13]} 16. Nxd4 {[%emt 0:00:33]} Re8 {[%emt 0:00:13]} 17. Nxc6 {[%emt 0:09:21]} bxc6 {[%emt 0:00:09]} 18. Qa4 {[%emt 0:01:43]} d5 {[%emt 0:07:11]} 19. Rad1 {[%emt 0:13:36]} Rxe4 {[%emt 0:12:09]} 20. Qxc6 {[%emt 0:01:38]} Re6 {[%emt 0:00:08]} 21. Qxd5 {[%emt 0:03:35]} Qxd5 {[%emt 0:00:06]} 22. Rxd5 {[%emt 0:00:06]} Bxb2 {[%emt 0:00:03]} 23. Rb1 {[%emt 0:03:30]} Bf6 {[%emt 0:07:22]} 24. Rb7 {[%emt 0:04:39]} Rae8 {[%emt 0:08:16]} 25. Rdd7 {[%emt 0:08:02]} R6e7 {[%emt 0:00:24]} 26. Rxe7 {[%emt 0:03:43]} Rxe7 {[%emt 0:00:07]} 27. Rb6 {[%emt 0:02:20]} Re6 {[%emt 0:00:06]} 28. Rxe6 {[%emt 0:00:40]} fxe6 {[%emt 0:00:01]} 29. Kf1 {[%emt 0:00:06]} Kf7 {[%emt 0:00:05]} 30. Ke2 {[%emt 0:00:03]} Ke7 {[%emt 0:00:27]} 31. Bc5+ {[%emt 0:01:42]} Kd7 {[%emt 0:00:05]} 32. Kd3 {[%emt 0:00:02]} Kc6 {[%emt 0:00:14]} 33. Kc4 {[%emt 0:00:07]} h5 {[%emt 0:00:39]} 34. g4 {[%emt 0:01:13]} 1/2-1/2

[Event "5th EFE Metz Festival IM 2019"]
[Site "Metz"]
[Date "2019.07.23"]
[Round "2.1"]
[White "Ravi, Teja S."]
[Black "Delorme, Alban"]
[Result "1-0"]
[ECO "D00"]
[WhiteElo "2410"]
[BlackElo "2327"]
[Annotator "NA"]
[PlyCount "97"]
[EventDate "2019.07.22"]
[EventType "tourn"]
[EventCountry "FRA"]
[SourceTitle "playchess.com"]
[Source "ChessBase"]
[SourceQuality "1"]
[TimeControl "5400+30"]

{[%evp 8,64,10,18,8,22,18,27,12,19,15,12,16,23,16,12,47,56,57,59,48,50,50,55,58,72,32767,74,91,64,79,32767,72,32767,91,32767,92,32767,32767,32767,104,95,32767,99,130,32767,132,32767,32767,32767,32767,32767,87,93,96,31,84,80,167]} 1. d4 {[%emt 0:00:39]} d5 {[%emt 0:00:00]} 2. Bf4 {[%emt 0:00:29]} Nf6 {[%emt 0:00:53]} 3. e3 {[%emt 0:00:05]} e6 {[%emt 0:01:02]} 4. Nf3 {[%emt 0:02:33]} Bd6 {[%emt 0:01:06]} 5. Bxd6 {[%emt 0:01:13]} cxd6 {[%emt 0:01:23]} 6. c4 {[%emt 0:00:26] D02: 1 d4 d5 2 Nf3 sidelines, including 2...Nf6 3 g3 and 2...Nf6 3 Bf4} dxc4 {[%emt 0:07:37]} (6... O-O 7. Nc3 dxc4 8. Bxc4 d5 9. Bd3 Nc6 10. O-O Qd6 11. Rc1 Bd7 12. Nb5 Qb8 13. a3 Rc8 {1-0 (48) Nabaty,T (2669)-Korobov,A (2699) Israel 2019}) 7. Bxc4 {[%emt 0:00:08]} O-O {[%emt 0:00:56]} 8. O-O {[%emt 0:01:05]} b6 {[%emt 0:08:30]} 9. Nc3 {[%emt 0:01:30]} Bb7 {[%emt 0:03:30]} 10. Qe2 {[%emt 0:01:33]} Nc6 $146 {[%emt 0:05:18]} ({Predecessor:} 10... Nbd7 11. h3 Rc8 12. Ba6 Qc7 13. Rac1 Bxa6 14. Qxa6 {1-0 (29) Prie,E (2518)-Mohota,N (2332) Creon 2007}) 11. Rac1 {[%emt 0:09:07]} e5 {[%emt 0:04:31]} 12. Ba6 {[%emt 0:21:25]} Bxa6 {[%emt 0:06:20]} 13. Qxa6 {[%emt 0:00:20]} exd4 {[%emt 0:01:14]} 14. Nb5 {[%emt 0:01:39]} Nb4 {[%emt 0:03:29]} 15. Qa3 {[%emt 0:00:09]} a5 $1 {[%emt 0:00:46]} 16. Nbxd4 {[%emt 0:02:12]} Qd7 {[%emt 0:02:02]} 17. Qb3 {[%emt 0:03:37]} Ne4 {[%emt 0:02:17]} 18. a3 {[%emt 0:01:37]} Nc5 {[%emt 0:00:45]} 19. Qc4 {[%emt 0:01:31]} Nbd3 {[%emt 0:00:47]} 20. Rc2 {[%emt 0:00:43]} Rac8 {[%emt 0:09:27]} 21. Rd1 {[%emt 0:14:31]} Ne5 {[%emt 0:03:54]} 22. Qd5 {[%emt 0:02:08]} Rfe8 {[%emt 0:03:18]} 23. Nxe5 {[%emt 0:05:48]} Rxe5 {[%emt 0:02:44]} 24. Qc4 {[%emt 0:00:36]} Ree8 {[%emt 0:03:52]} 25. Qb5 {[%emt 0:02:12]} Qb7 {[%emt 0:01:50]} 26. h3 {[%emt 0:04:30]} g6 {[%emt 0:01:51]} 27. b4 {[%emt 0:03:02]} axb4 {[%emt 0:00:39]} 28. axb4 {[%emt 0:00:04]} Ne4 {[%emt 0:01:53]} 29. Rdc1 {[%emt 0:00:15]} Kg7 {[%emt 0:01:48]} 30. Rc6 {[%emt 0:01:12]} Rxc6 {[%emt 0:00:08]} 31. Qxc6 {[%emt 0:02:41]} (31. Nxc6 $16 h6 32. Qd3) 31... Qe7 {[%emt 0:01:13]} 32. Rc2 {[%emt 0:04:58]} Qe5 $18 {[%emt 0:02:38]} (32... h5 $16 {was called for.}) 33. Ra2 {[%emt 0:02:26]} b5 {[%emt 0:03:29]} 34. Nxb5 {[%emt 0:01:34]} Rb8 {[%emt 0:00:48]} 35. Ra5 {[%emt 0:03:05]} Qf5 {[%emt 0:00:39]} 36. f3 {[%emt 0:01:03]} Nf6 {[%emt 0:01:37]} 37. Nxd6 {[%emt 0:01:02]} Qb1+ {[%emt 0:01:00]} 38. Kh2 {[%emt 0:00:04]} Qxb4 {[%emt 0:00:14]} 39. Ra6 {[%emt 0:02:08]} Nh5 {[%emt 0:03:22]} 40. Ra7 {[%emt 0:02:48]} Qe1 {[%emt 0:01:14]} 41. Rxf7+ {[%emt 0:00:35]} Kg8 {[%emt 0:00:14]} 42. Ne4 {[%emt 0:00:53]} Kxf7 {[%emt 0:00:48]} 43. Qc7+ {[%emt 0:00:11]} Ke6 {[%emt 0:00:29]} 44. Qxb8 {[%emt 0:01:05]} Qxe3 {[%emt 0:00:02]} 45. Qe8+ {[%emt 0:00:31]} Kd5 {[%emt 0:00:22]} 46. Nf6+ {[%emt 0:00:09]} Kd4 {[%emt 0:00:06]} 47. Qxe3+ {[%emt 0:00:17]} Kxe3 {[%emt 0:00:05]} 48. Nxh5 {[%emt 0:00:03]} gxh5 {[%emt 0:00:04]} 49. Kg3 {[%emt 0:00:07]} 1-0

[Event "5th EFE Metz Festival IM 2019"]
[Site "Metz"]
[Date "2019.07.23"]
[Round "2.2"]
[White "Villegas, Pierre"]
[Black "Maurizzi, Marc Andria"]
[Result "1/2-1/2"]
[ECO "E20"]
[WhiteElo "2349"]
[BlackElo "2412"]
[Annotator "ChessBase"]
[PlyCount "96"]
[EventDate "2019.07.22"]
[EventType "tourn"]
[EventCountry "FRA"]
[SourceTitle "playchess.com"]
[Source "ChessBase"]
[SourceQuality "1"]
[TimeControl "5400+30"]

1. d4 {[%emt 0:00:00]} Nf6 {[%emt 0:00:00]} 2. c4 {[%emt 0:00:00]} e6 {[%emt 0:00:00]} 3. Nc3 {[%emt 0:00:00]} Bb4 {[%emt 0:00:00]} 4. f3 {[%emt 0:00:21]} c5 {[%emt 0:01:16]} 5. d5 {[%emt 0:00:08]} exd5 {[%emt 0:00:37]} 6. cxd5 {[%emt 0:00:31]} O-O {[%emt 0:01:57]} 7. e4 {[%emt 0:00:58]} Re8 {[%emt 0:01:00]} 8. Nge2 {[%emt 0:03:23]} b5 {[%emt 0:19:08]} 9. Bd2 {[%emt 0:06:14]} Bxc3 {[%emt 0:09:19]} 10. bxc3 {[%emt 0:05:07]} d6 {[%emt 0:26:50]} 11. Ng3 {[%emt 0:12:13]} a6 {[%emt 0:04:57]} 12. Be2 {[%emt 0:04:05]} Nbd7 {[%emt 0:00:38]} 13. a4 {[%emt 0:06:32]} Rb8 {[%emt 0:02:13]} 14. axb5 {[%emt 0:01:26]} axb5 {[%emt 0:00:01]} 15. O-O {[%emt 0:01:03]} Ne5 {[%emt 0:04:28]} 16. Qc2 {[%emt 0:04:02]} Nc4 {[%emt 0:04:33]} 17. Bxc4 {[%emt 0:06:18]} bxc4 {[%emt 0:00:03]} 18. Bg5 {[%emt 0:00:15]} h6 {[%emt 0:02:10]} 19. Bxf6 {[%emt 0:01:17]} Qxf6 {[%emt 0:00:02]} 20. Qa4 {[%emt 0:01:49]} Qd8 {[%emt 0:06:13]} 21. Rfb1 {[%emt 0:10:17]} Rxb1+ {[%emt 0:00:20]} 22. Rxb1 {[%emt 0:00:02]} Bd7 {[%emt 0:01:39]} 23. Qa7 {[%emt 0:09:25]} Bc8 {[%emt 0:01:44]} 24. Rb8 {[%emt 0:03:00]} g6 {[%emt 0:09:09]} 25. Qa8 {[%emt 0:06:47]} Kf8 {[%emt 0:03:02]} 26. Nf1 {[%emt 0:02:25]} Kg7 {[%emt 0:01:03]} 27. Qc6 {[%emt 0:04:33]} f5 {[%emt 0:00:24]} 28. exf5 {[%emt 0:00:50]} gxf5 {[%emt 0:00:06]} 29. Rb6 {[%emt 0:02:02]} Re1 {[%emt 0:01:07]} 30. Qxd6 {[%emt 0:00:26]} Qxd6 {[%emt 0:00:07]} 31. Rxd6 {[%emt 0:00:01]} f4 {[%emt 0:00:12]} 32. Kf2 {[%emt 0:02:23]} Rc1 {[%emt 0:00:01]} 33. g4 {[%emt 0:01:52]} fxg3+ {[%emt 0:01:07]} 34. hxg3 {[%emt 0:01:18]} Rc2+ {[%emt 0:00:22]} 35. Ke1 {[%emt 0:00:13]} Rxc3 {[%emt 0:00:08]} 36. Rc6 {[%emt 0:02:50]} Bh3 {[%emt 0:00:24]} 37. Nd2 {[%emt 0:00:21]} Rc1+ {[%emt 0:00:05]} 38. Ke2 {[%emt 0:00:22]} c3 {[%emt 0:00:08]} 39. Nb3 {[%emt 0:01:10]} Rb1 {[%emt 0:00:29]} 40. Rc7+ Kf8 {[%emt 0:00:24]} 41. Nxc5 {[%emt 0:03:37]} c2 {[%emt 0:00:01]} 42. Nd7+ {[%emt 0:00:08]} Bxd7 {[%emt 0:00:05]} 43. Rxc2 {[%emt 0:00:01]} Ke7 {[%emt 0:00:31]} 44. g4 {[%emt 0:00:22]} Kd6 {[%emt 0:00:18]} 45. Ke3 {[%emt 0:00:15]} Rh1 {[%emt 0:00:23]} 46. Rd2 {[%emt 0:00:54]} Re1+ {[%emt 0:00:11]} 47. Kf4 {[%emt 0:00:10]} Re5 {[%emt 0:00:08]} 48. Rh2 {[%emt 0:00:12]} Rxd5 {[%emt 0:00:05]} 1/2-1/2

[Event "5th EFE Metz Festival IM 2019"]
[Site "Metz"]
[Date "2019.07.23"]
[Round "2.3"]
[White "Mouhamad, Joachim"]
[Black "Micottis, Dorian"]
[Result "1-0"]
[ECO "B18"]
[WhiteElo "2302"]
[BlackElo "2226"]
[Annotator "ChessBase"]
[PlyCount "65"]
[EventDate "2019.07.22"]
[EventType "tourn"]
[EventCountry "FRA"]
[SourceTitle "playchess.com"]
[Source "ChessBase"]
[SourceQuality "1"]
[TimeControl "5400+30"]

1. e4 {[%emt 0:00:00]} c6 {[%emt 0:00:00]} 2. d4 {[%emt 0:00:05]} d5 {[%emt 0:00:00]} 3. Nc3 {[%emt 0:00:26]} dxe4 {[%emt 0:00:52]} 4. Nxe4 {[%emt 0:00:15]} Bf5 {[%emt 0:00:03]} 5. Ng3 {[%emt 0:00:30]} Bg6 {[%emt 0:00:05]} 6. h4 {[%emt 0:01:29]} h6 {[%emt 0:00:04]} 7. Nf3 {[%emt 0:00:17]} e6 {[%emt 0:03:07]} 8. Ne5 {[%emt 0:00:45]} Bh7 {[%emt 0:00:18]} 9. Bd3 {[%emt 0:01:13]} Bxd3 {[%emt 0:00:05]} 10. Qxd3 {[%emt 0:00:30]} Nd7 {[%emt 0:00:30]} 11. f4 {[%emt 0:00:30]} Be7 {[%emt 0:01:37]} 12. Bd2 {[%emt 0:02:52]} Nxe5 {[%emt 0:00:41]} 13. fxe5 {[%emt 0:00:54]} Bxh4 {[%emt 0:00:05]} 14. O-O-O {[%emt 0:00:30]} Bxg3 {[%emt 0:00:28]} 15. Qxg3 {[%emt 0:00:11]} Ne7 {[%emt 0:00:09]} 16. Qxg7 {[%emt 0:00:40]} Rg8 {[%emt 0:00:06]} 17. Qxh6 {[%emt 0:00:37]} Qd5 {[%emt 0:06:42]} 18. Kb1 {[%emt 0:00:30]} O-O-O {[%emt 0:06:12]} 19. Qf6 {[%emt 0:00:33]} Nf5 {[%emt 0:05:41]} 20. Rh7 {[%emt 0:01:13]} Rd7 {[%emt 0:21:12]} 21. Rxf7 {[%emt 0:02:01]} Rxg2 {[%emt 0:11:36]} 22. Rxd7 {[%emt 0:02:49]} Qxd7 {[%emt 0:03:54]} 23. Bc1 {[%emt 0:00:50]} Kc7 {[%emt 0:05:10]} 24. Qf8 {[%emt 0:06:43]} Qd5 {[%emt 0:03:46]} 25. Qf7+ {[%emt 0:02:46]} Kb6 {[%emt 0:11:36]} 26. Rd3 {[%emt 0:03:25]} Nxd4 {[%emt 0:04:22]} 27. Be3 {[%emt 0:03:16]} c5 {[%emt 0:02:56]} 28. Bxd4 {[%emt 0:01:16]} cxd4 {[%emt 0:00:13]} 29. Rb3+ {[%emt 0:00:58]} Ka6 {[%emt 0:08:28]} 30. Qf1+ {[%emt 0:01:36]} Ka5 {[%emt 0:00:04]} 31. a4 {[%emt 0:03:46]} Kxa4 {[%emt 0:00:35]} 32. Qf8 {[%emt 0:00:25]} Qxb3 {[%emt 0:03:43]} 33. cxb3+ {[%emt 0:00:07]} 1-0

[Event "5th EFE Metz Festival IM 2019"]
[Site "Metz"]
[Date "2019.07.23"]
[Round "2.4"]
[White "Kurayan, Ruslan"]
[Black "Vedder, Richard"]
[Result "1/2-1/2"]
[ECO "C45"]
[WhiteElo "2376"]
[BlackElo "2286"]
[Annotator "ChessBase"]
[PlyCount "124"]
[EventDate "2019.07.22"]
[EventType "tourn"]
[EventCountry "FRA"]
[SourceTitle "playchess.com"]
[Source "ChessBase"]
[SourceQuality "1"]
[TimeControl "5400+30"]

1. e4 {[%emt 0:03:13]} e5 {[%emt 0:00:00]} 2. Nf3 {[%emt 0:00:20]} Nc6 {[%emt 0:00:00]} 3. d4 {[%emt 0:00:06]} exd4 {[%emt 0:00:00]} 4. Nxd4 {[%emt 0:00:05]} Nf6 {[%emt 0:00:16]} 5. Nxc6 {[%emt 0:01:29]} bxc6 {[%emt 0:00:09]} 6. e5 {[%emt 0:00:04]} Qe7 {[%emt 0:00:05]} 7. Qe2 {[%emt 0:00:04]} Nd5 {[%emt 0:00:05]} 8. c4 {[%emt 0:00:06]} Ba6 {[%emt 0:00:04]} 9. g3 {[%emt 0:00:58]} g6 {[%emt 0:02:16]} 10. b3 {[%emt 0:00:50]} Bg7 {[%emt 0:01:00]} 11. Bb2 {[%emt 0:00:09]} O-O {[%emt 0:05:20]} 12. Bg2 {[%emt 0:00:05]} Rfe8 {[%emt 0:00:49]} 13. O-O {[%emt 0:00:19]} Nb6 {[%emt 0:01:14]} 14. f4 {[%emt 0:09:26]} d5 {[%emt 0:03:45]} 15. Nd2 {[%emt 0:04:40]} f6 {[%emt 0:07:00]} 16. Rae1 {[%emt 0:09:59]} fxe5 {[%emt 0:04:12]} 17. fxe5 {[%emt 0:18:56]} Nd7 {[%emt 0:03:38]} 18. Nf3 {[%emt 0:04:03]} dxc4 {[%emt 0:04:25]} 19. Nd4 {[%emt 0:14:56]} Qc5 {[%emt 0:16:02]} 20. b4 {[%emt 0:04:01]} Qb6 {[%emt 0:00:31]} 21. Bc3 {[%emt 0:04:07]} Rxe5 {[%emt 0:05:44]} 22. Qd2 {[%emt 0:06:10]} Rae8 {[%emt 0:03:49]} 23. Rxe5 {[%emt 0:00:32]} Nxe5 {[%emt 0:00:19]} 24. Kh1 {[%emt 0:00:06]} Bc8 {[%emt 0:07:13]} 25. Nxc6 {[%emt 0:04:50]} Nxc6 {[%emt 0:06:52]} 26. Bd5+ {[%emt 0:02:33]} Kh8 {[%emt 0:03:52]} 27. Rf6 {[%emt 0:00:23]} Be6 {[%emt 0:17:21]} 28. Bxe6 {[%emt 0:02:44]} Nd8 {[%emt 0:00:05]} 29. Qd7 {[%emt 0:08:25]} Qc6+ {[%emt 0:00:05]} 30. Qxc6 {[%emt 0:00:38]} Nxc6 {[%emt 0:00:02]} 31. Bxc4 {[%emt 0:00:33]} Nxb4 {[%emt 0:01:51]} 32. Bb3 {[%emt 0:00:38]} c5 {[%emt 0:02:07]} 33. g4 {[%emt 0:00:28]} h6 {[%emt 0:01:29]} 34. Rf3 {[%emt 0:00:32]} Bxc3 {[%emt 0:00:19]} 35. Rxc3 {[%emt 0:00:03]} Re5 {[%emt 0:00:08]} 36. Rf3 {[%emt 0:00:28]} Re7 {[%emt 0:01:12]} 37. Rf8+ {[%emt 0:00:48]} Kg7 {[%emt 0:00:24]} 38. Rc8 {[%emt 0:00:20]} Nd3 {[%emt 0:00:11]} 39. Kg2 {[%emt 0:00:21]} g5 {[%emt 0:01:11]} 40. Rg8+ {[%emt 0:00:48]} Kf6 {[%emt 0:01:13]} 41. Rh8 {[%emt 0:00:28]} Ke5 {[%emt 0:01:22]} 42. Rxh6 {[%emt 0:00:07]} Kf4 {[%emt 0:00:05]} 43. Rf6+ {[%emt 0:00:04]} Ke3 {[%emt 0:00:29]} 44. Rf5 {[%emt 0:01:29]} Re5 {[%emt 0:00:31]} 45. Bc4 {[%emt 0:00:32]} Rxf5 {[%emt 0:02:10]} 46. gxf5 {[%emt 0:00:04]} Nf4+ {[%emt 0:00:14]} 47. Kg3 {[%emt 0:00:36]} Kd4 {[%emt 0:00:06]} 48. h4 {[%emt 0:00:40]} Ke5 {[%emt 0:00:47]} 49. hxg5 {[%emt 0:00:42]} Kxf5 {[%emt 0:00:05]} 50. Kh4 {[%emt 0:00:06]} Ne6 {[%emt 0:01:14]} 51. Bxe6+ {[%emt 0:00:50]} Kxe6 {[%emt 0:00:01]} 52. Kg4 {[%emt 0:00:05]} Kf7 {[%emt 0:01:06]} 53. Kf5 {[%emt 0:00:13]} c4 {[%emt 0:00:04]} 54. Ke4 {[%emt 0:00:03]} Kg6 {[%emt 0:00:03]} 55. Kd4 {[%emt 0:00:04]} c3 {[%emt 0:00:14]} 56. Kxc3 {[%emt 0:00:03]} Kxg5 {[%emt 0:00:02]} 57. Kb4 {[%emt 0:00:07]} Kf5 {[%emt 0:00:14]} 58. Kb5 {[%emt 0:00:03]} Ke5 {[%emt 0:00:08]} 59. Ka6 {[%emt 0:00:14]} Kd5 {[%emt 0:00:09]} 60. Kxa7 {[%emt 0:00:12]} Kc5 {[%emt 0:00:07]} 61. a4 {[%emt 0:00:03]} Kb4 {[%emt 0:00:02]} 62. a5 {[%emt 0:00:03]} Kxa5 {[%emt 0:00:03]} 1/2-1/2